Workbook

Sheet Cover
B3: Excel + VBA
B4: für Controller
B7: Kapitel | C7: 7
B8: Thema | C8: Strategisches Prozess-Controlling
B10: Inhalt | C10: Investitionsrechnungen
B18: Version | C18: 2.0
B19: Autor | C19: Harald Nahrstedt
B20: Datum | C20: 2023-08-03
B23: Springer Verlag

Sheet Investitionsanalyse
A1: Investitionsjahr | B1: 2020 | D1: Energiekosten monatlich | G1: 920
A2: Anschaffungskosten | B2: 360000 | D2: Instandhaltung/Wartung | G2: 3800
A3: Nutzungsdauer | B3: 6 | D3: Zusätzl. Instandhaltung ab dem 3. Jahr | G3: 1800
A4: jährliche Preissteigerung | B4: 0.035 | D4: Mitarbeiterschulung einmalig | G4: 7700
D5: Gesparte Personalkosten | G5: 87500
A7: Dauer | B7: 1 | C7: 2 | D7: 3 | E7: 4 | F7: 5 | G7: 6
A8: Jahr | B8: =Investitionsjahr -> 2020 | C8: =B8+1 -> 2021 | D8: =C8+1 -> 2022 | E8: =D8+1 -> 2023 | F8: =E8+1 -> 2024 | G8: =F8+1 -> 2025
A9: Abschreibung | B9: =SLN(Anschaffungskosten,0,Nutzungsdauer) -> 60000 | C9: 60000 | D9: 60000 | E9: 60000 | F9: 60000 | G9: 60000
A11: Energiekosten | B11: =Energiekosten*12 -> 11040 | C11: =B11*(1+Preissteigerung) -> 11426.4 | D11: 11826.324 | E11: 12240.24534 | F11: 12668.65393 | G11: 13112.05681
A12: Instandhaltung/Wartung | B12: =Instandhaltung -> 3800 | C12: 3933 | D12: 4070.655 | E12: 4213.127925 | F12: 4360.587402 | G12: 4513.207961
A13: Zusätzl. Instandhaltung | E13: =Zusätzlich -> 1800 | F13: =Zusätzlich -> 1800 | G13: =Zusätzlich -> 1800
A14: Mitarbeiterschulung | B14: =Schulung -> 7700
A15: Summe Ausgaben pro Periode | B15: =SUM(B11:B14) -> 22540 | C15: 15359.4 | D15: 15896.979 | E15: 18253.37326 | F15: 18829.24133 | G15: 19425.26478
A17: Einsparungen | B17: =Gespart -> 87500 | C17: =B17*(1+Preissteigerung) -> 90562.5 | D17: =C17*(1+Preissteigerung) -> 93732.1875 | E17: =D17*(1+Preissteigerung) -> 97012.81406 | F17: =E17*(1+Preissteigerung) -> 100408.2626 | G17: =F17*(1+Preissteigerung) -> 103922.5517
A19: Kapitalrückfluss | B19: =B17-B15 -> 64960 | C19: 75203.1 | D19: 77835.2085 | E19: 78759.4408 | F19: 81579.02123 | G19: 84497.28697
A20: Saldo Kapitaleinsatz/-rückfluss | B20: =B19-Anschaffungskosten -> -295040 | C20: =B20+C19 -> -219836.9 | D20: =C20+D19 -> -142001.6915 | E20: =D20+E19 -> -63242.2507 | F20: =E20+F19 -> 18336.77052 | G20: =F20+G19 -> 102834.0575

Sheet statische Amortisation
A1: Dauer | B1: =Dauer -> 1 | C1: 2 | D1: 3 | E1: 4 | F1: 5 | G1: 6
A2: Jahr | B2: =Jahr -> 2020 | C2: =B2+1 -> 2021 | D2: =C2+1 -> 2022 | E2: =D2+1 -> 2023 | F2: =E2+1 -> 2024 | G2: =F2+1 -> 2025
A3: Kapitalrückfluss | B3: =Kapitalrückfluss -> 64960 | C3: 75203.1 | D3: 77835.2085 | E3: 78759.4408 | F3: 81579.02123 | G3: 84497.28697
A4: Saldo Kapitaleinsatz/-rückfluss | B4: =B3-Anschaffungskosten -> -295040 | C4: =B4+C3 -> -219836.9 | D4: =C4+D3 -> -142001.6915 | E4: =D4+E3 -> -63242.2507 | F4: =E4+F3 -> 18336.77052 | G4: =F4+G3 -> 102834.0575
A6: Amortisationsjahr | B6: =IF(AND(B$4>0,A$4<0),B$2,"") ->  | F6: 2024
A7: Amortisationsdauer | B7: =SUM(B6:G6)-B2+1 -> 5 | C7: Jahre

Sheet Kapitalwertbestimmung
A1: Kapitalzinsfuß | B1: 0.035
A3: Dauer | B3: =Dauer -> 1 | C3: 2 | D3: 3 | E3: 4 | F3: 5 | G3: 6
A4: Jahr | B4: =Jahr -> 2020 | C4: =B4+1 -> 2021 | D4: =C4+1 -> 2022 | E4: =D4+1 -> 2023 | F4: =E4+1 -> 2024 | G4: =F4+1 -> 2025
A5: Kapitalrückfluss | B5: =Kapitalrückfluss -> 64960 | C5: 75203.1 | D5: 77835.2085 | E5: 78759.4408 | F5: 81579.02123 | G5: 84497.28697
A6: abgezinster Kapitalrückfluss | B6: =B5/(1+Kapitalzinsfuß)^B3 -> 62763.28502 | C6: 70202.89855 | D6: 70202.89855 | E6: 68634.30254 | F6: 68687.34685 | G6: 68738.59739
A7: kumuliert | B7: =B6-Anschaffungskosten -> -297236.715 | C7: =B7+C6 -> -227033.8164 | D7: =C7+D6 -> -156830.9179 | E7: -88196.61533 | F7: -19509.26848 | G7: 49229.32891
A9: Kapitalwert (Funktion NBW) | B9: =NPV(Kapitalzinsfuß,Kapitalrückfluss)-Anschaffungskosten -> 49229.32891

Sheet dynamische Amortisation
A1: Kapitalzinsfuß | B1: 0.035
A3: Dauer | B3: =Dauer -> 1 | C3: 2 | D3: 3 | E3: 4 | F3: 5 | G3: 6
A4: Jahre | B4: =Jahr -> 2020 | C4: =B4+1 -> 2021 | D4: =C4+1 -> 2022 | E4: =D4+1 -> 2023 | F4: =E4+1 -> 2024 | G4: =F4+1 -> 2025
A5: Kapitalrückfluss | B5: =Kapitalrückfluss -> 64960 | C5: 75203.1 | D5: 77835.2085 | E5: 78759.4408 | F5: 81579.02123 | G5: 84497.28697
A6: Kapitalwertberechnung | B6: =-Anschaffungskosten+NPV(Kapitalzinsfuß2,$B$5:B5) -> -297236.715 | C6: =-Anschaffungskosten+NPV(Kapitalzinsfuß2,$B$5:C5) -> -227033.8164 | D6: =-Anschaffungskosten+NPV(Kapitalzinsfuß2,$B$5:D5) -> -156830.9179 | E6: =-Anschaffungskosten+NPV(Kapitalzinsfuß2,$B$5:E5) -> -88196.61533 | F6: =-Anschaffungskosten+NPV(Kapitalzinsfuß2,$B$5:F5) -> -19509.26848 | G6: =-Anschaffungskosten+NPV(Kapitalzinsfuß2,$B$5:G5) -> 49229.32891
A8: Amortisationsjahr | B8: =IF(AND(B6>0,A6<0),B4,"") ->  | C8: =IF(AND(C6>0,B6<0),C4,"") ->  | G8: =IF(AND(G6>0,F6<0),G4,"") -> 2025
A9: Amortisationsdauer | B9: =SUM(B8:G8)-B4+1 -> 6

Sheet Interner Zinsfuß
A1: Dauer | B1: =Dauer -> 1 | C1: 2 | D1: 3 | E1: 4 | F1: 5 | G1: 6
A2: Jahre | B2: =Jahr -> 2020 | C2: =B2+1 -> 2021 | D2: =C2+1 -> 2022 | E2: =D2+1 -> 2023 | F2: =E2+1 -> 2024 | G2: =F2+1 -> 2025
A3: =-Anschaffungskosten -> -360000 | B3: =Kapitalrückfluss -> 64960 | C3: 75203.1 | D3: 77835.2085 | E3: 78759.4408 | F3: 81579.02123 | G3: 84497.28697
A5: Interner Zinsfuß | B5: =IRR(A3:G3) -> 0.0738717167

Sheet Ergebnisprüfung
A1: Kapitalzinsfuß | B1: 0.0738717
A3: Dauer | B3: =Dauer -> 1 | C3: 2 | D3: 3 | E3: 4 | F3: 5 | G3: 6
A4: Jahr | B4: =Jahr -> 2020 | C4: =B4+1 -> 2021 | D4: =C4+1 -> 2022 | E4: =D4+1 -> 2023 | F4: =E4+1 -> 2024 | G4: =F4+1 -> 2025
A5: Kapitalrückfluss | B5: =Kapitalrückfluss -> 64960 | C5: 75203.1 | D5: 77835.2085 | E5: 78759.4408 | F5: 81579.02123 | G5: 84497.28697
A6: abgezinster Kapitalrückfluss | B6: =B5/(1+Kapitalzinsfuß)^B3 -> 60491.39762 | C6: 65212.51482 | D6: 62851.9709 | E6: 59223.35876 | F6: 57123.72281 | G6: 55097.05426
A7: kumuliert | B7: =B6-Anschaffungskosten -> -299508.6024 | C7: =B7+C6 -> -234296.0876 | D7: =C7+D6 -> -171444.1167 | E7: -112220.7579 | F7: -55097.0351 | G7: 0.01916341808
A9: Kapitalwert (Funktion NBW) | B9: =NPV(Kapitalzinsfuß,Kapitalrückfluss)-Anschaffungskosten -> 0.0191634181

Sheet Periodenbezogene KVR
B1: Anlage 1 | C1: Anlage 2 | E1: Durchschn. Kapitalbindung / Jahr
A2: Anschaffungskosten | B2: 82000 | C2: 91000 | E2: Anlage 1 | F2: Anlage 2
A3: Restwert | B3: 5000 | C3: 6000 | E3: 8500 | F3: 6300 | G3: Betriebskosten
A4: Betriebskosten / Jahr | B4: 8500 | C4: 6300 | E4: 15400 | F4: 17000 | G4: Abschreibung
A5: Nutzungsdauer | B5: 5 | C5: 5 | E5: 1925 | F5: 2125 | G5: Kapitalkosten
A6: Bankdarlehen | B6: 0.05 | C6: 0.05 | E6: =SUM(E3:E5) -> 25825 | F6: =SUM(F3:F5) -> 25425 | G6: Summe
A8: Periodenbezogene KVR
A9: Abschreibung | B9: =(B2-B3)/B5 -> 15400 | C9: =(C2-C3)/C5 -> 17000
A10: Kapitalkosten (Zinsen) | B10: =(B2-B3)/2*B6 -> 1925 | C10: =(C2-C3)/2*C6 -> 2125
A12: Kapitalbindung Anlage 1
A13: Jahre | B13: 1 | C13: 2 | D13: 3 | E13: 4 | F13: 5
A14: Betrag zum Jahresgewinn | B14: =B2 -> 82000 | C14: =B15 -> 66600 | D14: =C15 -> 51200 | E14: 35800 | F14: 20400
A15: Betrag zum Jahresende | B15: =B2-B9 -> 66600 | C15: =C14-$B9 -> 51200 | D15: =D14-$B9 -> 35800 | E15: 20400 | F15: 5000
A16: Zinsen | B16: =(B14+B15)/2*B6 -> 3715 | C16: =(C14+C15)/2*$B6 -> 2945 | D16: =(D14+D15)/2*$B6 -> 2175 | E16: 1405 | F16: 635
A18: Kapitalbindung Anlage 2
A19: Jahre | B19: 1 | C19: 2 | D19: 3 | E19: 4 | F19: 5
A20: Betrag zum Jahresgewinn | B20: =C2 -> 91000 | C20: =B21 -> 74000 | D20: =C21 -> 57000 | E20: 40000 | F20: 23000
A21: Betrag zum Jahresende | B21: =C2-C9 -> 74000 | C21: =C20-$C9 -> 57000 | D21: =D20-$C9 -> 40000 | E21: 23000 | F21: 6000
A22: Zinsen | B22: =(B20+B21)/2*$C6 -> 4125 | C22: =(C20+C21)/2*$C6 -> 3275 | D22: =(D20+D21)/2*$C6 -> 2425 | E22: 1575 | F22: 725

Sheet Stückbezogene KVR
B1: Anlage 1 | C1: Anlage 2 | E1: Durchschn. Kapitalbindung / Jahr
A2: Anschaffungskosten | B2: 82000 | C2: 91000 | E2: Anlage 1 | F2: Anlage 2
A3: Restwert | B3: 5000 | C3: 6000 | E3: 8500 | F3: 6300 | G3: Betriebskosten
A4: Betriebskosten / Jahr | B4: 8500 | C4: 6300 | E4: 15400 | F4: 17000 | G4: Abschreibung
A5: Nutzungsdauer | B5: 5 | C5: 5 | E5: 1925 | F5: 2125 | G5: Kapitalkosten
A6: Bankdarlehen | B6: 0.05 | C6: 0.05 | E6: =SUM(E3:E5) -> 25825 | F6: =SUM(F3:F5) -> 25425 | G6: Summe
E7: 360000 | F7: 280000 | G7: Stück/Jahr
A8: Periodenbezogene KVR | E8: =E6/E7 -> 0.07173611111 | F8: =F6/F7 -> 0.09080357143 | G8: Stückkosten
A9: Abschreibung | B9: =(B2-B3)/B5 -> 15400 | C9: =(C2-C3)/C5 -> 17000
A10: Kapitalkosten (Zinsen) | B10: =(B2-B3)/2*B6 -> 1925 | C10: =(C2-C3)/2*C6 -> 2125
A12: Kapitalbindung Anlage 1
A13: Jahre | B13: 1 | C13: 2 | D13: 3 | E13: 4 | F13: 5
A14: Betrag zum Jahresgewinn | B14: =B2 -> 82000 | C14: =B15 -> 66600 | D14: =C15 -> 51200 | E14: =D15 -> 35800 | F14: 20400
A15: Betrag zum Jahresende | B15: =B2-B9 -> 66600 | C15: =C14-$B9 -> 51200 | D15: =D14-$B9 -> 35800 | E15: =E14-$B9 -> 20400 | F15: 5000
A16: Zinsen | B16: =(B14+B15)/2*B6 -> 3715 | C16: =(C14+C15)/2*$C6 -> 2945 | D16: =(D14+D15)/2*$C6 -> 2175 | E16: =(E14+E15)/2*$C6 -> 1405 | F16: 635
A18: Kapitalbindung Anlage 2
A19: Jahre | B19: 1 | C19: 2 | D19: 3 | E19: 4 | F19: 5
A20: Betrag zum Jahresgewinn | B20: =C2 -> 91000 | C20: =B21 -> 74000 | D20: =C21 -> 57000 | E20: 40000 | F20: 23000
A21: Betrag zum Jahresende | B21: =C2-C9 -> 74000 | C21: =C20-$C9 -> 57000 | D21: =D20-$C9 -> 40000 | E21: 23000 | F21: 6000
A22: Zinsen | B22: =(B20+B21)/2*$C6 -> 4125 | C22: =(C20+C21)/2*$C6 -> 3275 | D22: =(D20+D21)/2*$C6 -> 2425 | E22: 1575 | F22: 725
